bitfinex/quotes_BTCUSD_20241011
["timestamp","ask_amount","ask_price","bid_price","bid_amount"]
[1728655781382,0.001638,61813.0,61812.0,0.0775]
[1728655781605,0.001638,61813.0,61803.0,0.000819]
[1728655781606,0.161801,61804.0,61803.0,0.000819]
[1728655781849,0.3311103,61804.0,61803.0,0.000819]
[1728655782542,0.3601103,61804.0,61803.0,0.000819]
[1728655782764,0.3651103,61804.0,61803.0,0.000819]
[1728655782977,0.3421103,61804.0,61803.0,0.000819]
[1728655783228,0.3561103,61804.0,61803.0,0.000819]
[1728655784104,0.3361103,61804.0,61803.0,0.000819]
[1728655784328,0.35223678,61804.0,61803.0,0.000819]
[1728655784563,0.36623678,61804.0,61803.0,0.001819]
[1728655785005,0.3501103,61804.0,61803.0,0.001819]
[1728655785431,0.3641103,61804.0,61803.0,0.002819]
[1728655785649,0.3501103,61804.0,61803.0,0.001819]
[1728655786122,0.3641103,61804.0,61803.0,0.002819]
[1728655787520,0.5346103,61804.0,61803.0,0.002819]
[1728655787735,0.3641103,61804.0,61803.0,0.002819]
[1728655790310,0.1973093,61804.0,61803.0,0.19405221]
[1728655790514,0.3607483,61804.0,61803.0,0.27075221]
[1728655790729,0.1989473,61804.0,61803.0,0.27075221]
[1728655790950,0.1989473,61804.0,61803.0,0.43255621]
[1728655791194,0.1849473,61804.0,61803.0,0.53983193]
[1728655791381,0.029638,61804.0,61803.0,0.54083193]
[1728655791613,0.015638,61804.0,61803.0,0.66933193]
[1728655791833,0.001638,61813.0,61812.0,0.23798]
[1728655792072,0.001638,61813.0,61812.0,0.64722581]
[1728655792287,0.001638,61813.0,61812.0,0.74722581]
[1728655793137,0.002638,61813.0,61812.0,0.75222581]
[1728655793582,0.002638,61813.0,61812.0,0.66371321]
[1728655798273,0.002638,61813.0,61812.0,0.56371321]
[1728655801340,0.002638,61813.0,61812.0,0.66371321]
[1728655801550,0.001638,61831.0,61830.0,0.161733]
[1728655801754,0.001638,61831.0,61830.0,0.48526621]
[1728655801968,0.001638,61831.0,61830.0,0.57299036]
[1728655802182,0.001638,61831.0,61830.0,0.48526621]
[1728655802183,0.1709473,61831.0,61830.0,0.48526621]
[1728655802604,0.1709473,61831.0,61830.0,0.1323]
[1728655802819,0.3326783,61831.0,61827.0,0.24084]
[1728655803037,0.161739,61828.0,61827.0,0.0791]
[1728655803243,0.3310483,61828.0,61827.0,0.0791]
[1728655803870,0.1693093,61828.0,61827.0,0.0791]
[1728655804079,0.1693093,61828.0,61827.0,0.27033321]
[1728655804291,0.3310483,61828.0,61827.0,0.27033321]
[1728655804702,0.3360483,61828.0,61827.0,0.27133321]
[1728655805119,0.1743093,61828.0,61827.0,0.43307421]
[1728655805310,0.009,61828.0,61827.0,0.43307421]
[1728655805728,0.001638,61831.0,61830.0,0.161733]
[1728655806274,0.02175644,61852.0,61845.0,0.161694]
[1728655806430,0.005,61862.0,61845.0,0.43222721]
[1728655806618,0.0001,61865.0,61845.0,0.43222721]
[1728655806825,0.161659,61859.0,61845.0,0.56662721]
[1728655807031,0.3233,61862.0,61845.0,0.73606991]
[1728655807032,0.161661,61858.0,61845.0,0.73606991]
[1728655807242,0.323324,61858.0,61845.0,0.73606991]
[1728655807572,0.323302,61862.0,61845.0,0.73606991]
[1728655807799,0.323317,61859.0,61845.0,0.73606991]
[1728655808019,0.161669,61855.0,61845.0,0.73606991]
[1728655808238,0.323302,61862.0,61845.0,0.73606991]
[1728655808443,0.00264,61846.0,61845.0,0.73606991]
[1728655808654,0.00264,61846.0,61845.0,1.27870973]
[1728655808869,0.161742,61865.0,61864.0,0.19123321]
[1728655809079,0.3310513,61865.0,61864.0,0.19123321]
[1728655810781,0.4926943,61865.0,61847.0,0.0794]
[1728655810991,0.161665,61856.0,61855.0,0.24240661]
[1728655811206,0.3309743,61856.0,61855.0,0.24240661]
[1728655811441,0.1693093,61856.0,61853.0,0.19123321]
[1728655811649,0.3309783,61855.0,61853.0,0.19123321]
[1728655811857,0.1693093,61855.0,61853.0,0.19123321]
[1728655812067,0.1693093,61855.0,61853.0,0.35290521]
[1728655812276,0.1693093,61855.0,61853.0,0.19123321]
[1728655812512,0.3309783,61855.0,61853.0,0.19123321]
[1728655812724,0.1694093,61855.0,61854.0,0.161671]
[1728655813388,0.1694093,61855.0,61853.0,0.35590521]
[1728655813621,0.1694093,61855.0,61854.0,0.161671]
[1728655814173,0.1694093,61855.0,61854.0,0.47200333]
[1728655814174,0.0001,61855.0,61854.0,0.47200333]
[1728655814421,0.0001,61855.0,61854.0,0.30509672]
[1728655814674,0.001738,61855.0,61854.0,0.30509672]
[1728655814947,0.001738,61855.0,61854.0,0.43839672]
[1728655815232,0.001738,61855.0,61854.0,0.370471]
[1728655815488,0.001738,61855.0,61854.0,0.56170421]
[1728655815723,0.0001,61865.0,61864.0,0.236844]
[1728655815967,0.0001,61865.0,61864.0,0.62254311]
[1728655816201,0.0001,61865.0,61864.0,0.61931042]
[1728655816505,0.0001,61865.0,61864.0,0.42807721]
[1728655816702,0.0001,61865.0,61864.0,0.55516845]
[1728655816967,0.1694093,61865.0,61855.0,0.0769]
[1728655817246,0.4926013,61864.0,61855.0,0.26813321]
[1728655817481,0.161668,61855.0,61851.0,0.19123321]
[1728655817722,0.161668,61855.0,61854.0,0.012]
[1728655817723,0.3309773,61855.0,61854.0,0.012]
[1728655817957,0.161671,61854.0,61850.0,0.0758]
[1728655818233,0.1693093,61854.0,61850.0,0.0758]
[1728655818475,0.323386,61865.0,61836.0,0.0775]
[1728655818476,0.1693093,61853.0,61836.0,0.0775]
[1728655818712,0.323355,61852.0,61847.0,0.24240661]
[1728655818958,0.50768261,61851.0,61844.0,0.161694]
[1728655819179,0.323371,61849.0,61844.0,0.161694]
[1728655819402,0.161689,61847.0,61844.0,0.161694]
[1728655819628,0.161689,61847.0,61840.0,0.161707]
[1728655819629,0.1617,61843.0,61840.0,0.161707]
[1728655819837,0.1617,61843.0,61839.0,0.24240661]
[1728655819838,0.1693093,61842.0,61839.0,0.24240661]
[1728655820056,0.161705,61841.0,61839.0,0.24240661]
[1728655820299,0.161705,61841.0,61838.0,0.40836183]
[1728655820300,0.1693093,61841.0,61838.0,0.40836183]
[1728655820722,0.1693093,61841.0,61839.0,0.161709]
[1728655820940,0.323361,61851.0,61845.0,0.161693]
[1728655820941,0.161685,61849.0,61845.0,0.161693]
[1728655821167,0.161694,61846.0,61841.0,0.161702]
[1728655821390,0.161697,61844.0,61843.0,0.28266183]
[1728655821661,0.3310063,61844.0,61839.0,0.60607783]
[1728655821900,0.3310083,61843.0,61840.0,0.161706]
[1728655822141,0.3310093,61843.0,61840.0,0.161706]
[1728655822355,0.1693093,61843.0,61840.0,0.161706]
[1728655822576,0.1693093,61843.0,61839.0,0.60607783]
[1728655822795,0.1693093,61843.0,61840.0,0.323414]
[1728655823004,0.1693093,61843.0,61839.0,0.60607783]
[1728655823229,0.1723093,61843.0,61839.0,0.60607883]
[1728655823421,0.1723093,61843.0,61841.0,0.001]
[1728655823635,0.0150513,61842.0,61841.0,0.162705]
[1728655823850,0.0150513,61842.0,61839.0,0.28266183]
[1728655823851,0.1693093,61842.0,61839.0,0.28266183]
[1728655824066,0.1693093,61841.0,61839.0,0.44536983]
[1728655824293,0.1693093,61841.0,61839.0,0.44536883]
[1728655824507,0.1693093,61841.0,61839.0,0.44536983]
[1728655824723,0.1693093,61841.0,61839.0,0.28266183]
[1728655825147,0.0150552,61840.0,61839.0,0.28266183]
[1728655825416,0.3460715,61840.0,61839.0,0.28266183]
[1728655825627,0.1843645,61840.0,61833.0,0.161725]
[1728655825846,0.161716,61837.0,61834.0,0.161723]
[1728655826068,0.324411,61841.0,61833.0,0.24240661]
[1728655826069,0.18436968,61836.0,61833.0,0.24240661]
[1728655826287,0.01506038,61835.0,61834.0,0.161721]
[1728655826509,0.18437431,61835.0,61834.0,0.161721]
[1728655826960,0.19642634,61835.0,61834.0,0.165721]
[1728655827602,0.19642634,61835.0,61834.0,0.004]
[1728655827818,0.35814634,61835.0,61834.0,0.004]
[1728655828052,0.19642634,61835.0,61834.0,0.004]
[1728655828269,0.19642634,61835.0,61834.0,0.001]
[1728655828270,0.35814634,61835.0,61834.0,0.001]
[1728655828485,0.19642634,61835.0,61834.0,0.001]
[1728655828703,0.19742634,61835.0,61834.0,0.007]
[1728655828918,0.19642634,61835.0,61834.0,0.001]
[1728655829137,0.35814634,61835.0,61834.0,0.001]
[1728655829371,0.37022989,61835.0,61834.0,0.003]
[1728655829590,0.22057698,61835.0,61834.0,0.002]
[1728655829801,0.38229698,61835.0,61834.0,0.002]
[1728655831149,0.22057698,61835.0,61834.0,0.002]
[1728655831384,0.22057698,61835.0,61834.0,0.44638483]
[1728655831620,0.19645354,61835.0,61834.0,0.44638483]
[1728655831916,0.02714424,61835.0,61834.0,0.46010754]
[1728655832165,0.323395,61844.0,61837.0,0.32343]
[1728655832384,0.22059368,61843.0,61841.0,0.28266183]
[1728655832651,0.18137621,61843.0,61841.0,0.28266183]
[1728655832901,0.3310083,61843.0,61842.0,0.01368814]
[1728655833140,0.38229727,61843.0,61842.0,0.01368814]
[1728655833593,0.161702,61842.0,61841.0,0.001]
[1728655833812,0.38230027,61842.0,61841.0,0.001]
[1728655834044,0.22059827,61842.0,61841.0,0.001]
[1728655834288,0.38230027,61842.0,61841.0,0.28266183]
[1728655834741,0.22059827,61842.0,61841.0,0.28266183]
[1728655835176,0.19646228,61842.0,61841.0,0.28266183]
[1728655835387,0.35816428,61842.0,61841.0,0.28266183]
[1728655835625,0.38231755,61842.0,61841.0,0.28266183]
[1728655835841,0.38231742,61842.0,61841.0,0.28256183]
[1728655836049,0.38231742,61842.0,61841.0,0.28356183]
[1728655836265,0.38831742,61842.0,61841.0,0.28456183]
[1728655836479,0.38831742,61842.0,61841.0,0.28356183]
[1728655836480,0.35816428,61842.0,61841.0,0.28356183]
[1728655836713,0.35816428,61842.0,61841.0,0.28256183]
[1728655836714,0.38231673,61842.0,61841.0,0.28256183]
[1728655836957,0.22561473,61842.0,61841.0,0.001]
[1728655837218,0.48731673,61842.0,61841.0,0.001]
[1728655837457,0.48731673,61842.0,61831.0,0.24240661]
[1728655837458,0.32561473,61842.0,61831.0,0.24240661]
[1728655837687,0.161728,61832.0,61831.0,0.24240661]
[1728655837924,0.35819028,61832.0,61831.0,0.24240661]
[1728655838186,0.161749,61824.0,61823.0,0.24240661]
[1728655838477,0.35821128,61824.0,61823.0,0.24240661]
[1728655838938,0.16176,61820.0,61817.0,0.19111505]
[1728655839200,0.02715298,61819.0,61817.0,0.19111505]
[1728655839527,0.161765,61818.0,61817.0,0.19111505]
[1728655839716,0.161765,61818.0,61813.0,0.293877]
[1728655839717,0.22061536,61818.0,61813.0,0.19111505]
[1728655839982,0.5051,61832.0,61805.0,0.19111505]
[1728655839983,0.161798,61806.0,61805.0,0.19111505]
[1728655840226,0.161798,61806.0,61804.0,0.24240661]
[1728655840227,0.161799,61805.0,61804.0,0.24240661]
[1728655840499,0.35826949,61805.0,61804.0,0.24240661]
[1728655840824,0.161801,61804.0,61803.0,0.19193405]
[1728655841131,0.19647049,61804.0,61803.0,0.19193405]
[1728655841385,0.35827149,61804.0,61803.0,0.000819]
[1728655842912,0.39437422,61804.0,61803.0,0.001819]
[1728655843148,0.38937422,61804.0,61803.0,0.001819]
[1728655843609,0.38937422,61804.0,61803.0,0.002819]
[1728655843879,0.23657322,61804.0,61803.0,0.002819]
[1728655844136,0.23657322,61804.0,61803.0,0.000819]
[1728655844137,0.38237422,61804.0,61803.0,0.000819]
[1728655844611,0.39137422,61804.0,61803.0,0.001819]
[1728655844841,0.39137422,61804.0,61803.0,0.01177021]
[1728655845317,0.39137422,61804.0,61803.0,0.001819]
[1728655845551,0.37727149,61804.0,61803.0,0.002819]
[1728655845792,0.35827149,61804.0,61803.0,0.01077021]
[1728655846050,0.37927149,61804.0,61803.0,0.01277021]
[1728655846269,0.36721996,61804.0,61803.0,0.01177021]
[1728655846538,0.36721996,61804.0,61803.0,0.000819]
[1728655846791,0.20441896,61804.0,61803.0,0.29485148]
[1728655847008,0.1783093,61804.0,61803.0,0.29485148]
[1728655847483,0.1773093,61804.0,61803.0,0.29485148]
[1728655848175,0.1773093,61804.0,61803.0,0.45665548]
[1728655848423,0.3391103,61804.0,61803.0,0.29485148]
[1728655848636,0.3311103,61804.0,61803.0,0.29385148]
[1728655848892,0.1823093,61804.0,61803.0,0.29485148]
[1728655849122,0.1823093,61804.0,61803.0,0.45665548]
[1728655849337,0.1823093,61804.0,61803.0,0.29385148]
[1728655849560,0.1733093,61804.0,61803.0,0.45565548]
[1728655849829,0.1803093,61804.0,61803.0,0.45665548]
[1728655850299,0.1693093,61804.0,61803.0,0.45565548]
[1728655850524,0.1783093,61804.0,61803.0,0.45665548]
[1728655851638,0.1783093,61804.0,61803.0,0.54314843]
[1728655851857,0.1783093,61804.0,61803.0,0.45665548]
[1728655852298,0.1693093,61804.0,61803.0,0.45565548]
[1728655852515,0.1743093,61804.0,61803.0,0.45565548]
[1728655852731,0.1763093,61804.0,61803.0,0.45565548]
[1728655852949,0.1743093,61804.0,61803.0,0.45565548]
[1728655853169,0.1693093,61804.0,61803.0,0.45565548]
[1728655853397,0.1723093,61804.0,61803.0,0.45565548]
[1728655853916,0.4726,61822.0,61803.0,0.29385148]
[1728655854154,0.19639721,61821.0,61820.0,0.44483927]
[1728655854409,0.1693093,61821.0,61820.0,0.44483927]
[1728655854697,0.1693093,61821.0,61820.0,0.45481529]
[1728655854968,0.0001,61832.0,61820.0,0.29305729]
[1728655855144,0.1693093,61831.0,61825.0,0.28308127]
[1728655855366,0.01504994,61830.0,61829.0,0.161736]
[1728655855590,0.18435924,61830.0,61829.0,0.161736]
[1728655855842,0.1693093,61830.0,61829.0,0.17162521]
[1728655856089,0.1693093,61830.0,61829.0,0.45470648]
[1728655856586,0.0001,61832.0,61831.0,0.161731]
[1728655856846,0.1694093,61832.0,61831.0,0.161731]
[1728655857098,0.1694093,61832.0,61831.0,0.17160888]
[1728655858034,0.1694093,61832.0,61831.0,0.00987788]
[1728655858251,0.1694093,61832.0,61831.0,0.17160888]
[1728655858469,0.1704093,61832.0,61831.0,0.161731]
[1728655858654,0.1694093,61832.0,61831.0,0.00984186]
[1728655859081,0.3351373,61832.0,61831.0,0.01184186]
[1728655859303,0.3351373,61832.0,61831.0,0.002]
[1728655859523,0.3311373,61832.0,61831.0,0.002]
[1728655859746,0.161759,61821.0,61819.0,0.24240661]
[1728655859983,0.32351,61822.0,61819.0,0.24240661]
[1728655859984,0.1693093,61820.0,61819.0,0.24240661]
[1728655860244,0.1693093,61820.0,61819.0,0.40416861]
[1728655860467,0.161734,61830.0,61826.0,0.161743]
[1728655860681,0.1693093,61829.0,61826.0,0.161743]
[1728655860937,0.3310463,61829.0,61826.0,0.161743]
[1728655861151,0.1693093,61829.0,61828.0,0.161739]
[1728655861442,0.01505633,61829.0,61828.0,0.16497365]
[1728655861654,0.0101,61832.0,61831.0,0.161731]
[1728655861928,0.0101,61832.0,61831.0,0.16496518]
[1728655861929,0.0011,61832.0,61831.0,0.16496518]
[1728655862152,0.0011,61832.0,61831.0,0.54804645]
[1728655862386,0.0001,61832.0,61831.0,0.62011227]
[1728655862919,0.001638,61841.0,61840.0,0.6434995]
[1728655863182,0.001638,61841.0,61840.0,0.6484995]
[1728655863433,0.001636,61855.0,61854.0,0.35256725]
[1728655863665,0.1709453,61855.0,61854.0,0.35256725]
[1728655863907,0.1709453,61855.0,61854.0,0.42015908]
[1728655863908,0.001636,61855.0,61854.0,0.42015908]
[1728655864135,0.001636,61855.0,61854.0,0.19089625]
[1728655864385,0.001636,61855.0,61854.0,0.35256725]
[1728655864607,0.001636,61855.0,61854.0,0.19289625]
[1728655864881,0.001636,61855.0,61854.0,0.44621588]
[1728655865131,0.001636,61855.0,61854.0,0.44421588]
[1728655865621,0.005636,61855.0,61854.0,0.44421588]
[1728655865844,0.005636,61855.0,61854.0,0.28254488]
[1728655866090,0.001636,61855.0,61854.0,0.28254488]
[1728655866521,0.3356133,61855.0,61854.0,0.28254488]
[1728655866962,0.3326133,61855.0,61854.0,0.28254488]
[1728655867168,0.1709453,61855.0,61854.0,0.28254488]
[1728655867377,0.1739453,61855.0,61854.0,0.28254488]
[1728655867586,0.3356133,61855.0,61854.0,0.28254488]
[1728655868037,0.3356133,61855.0,61845.0,0.56579361]
[1728655868038,0.161676,61852.0,61845.0,0.24240661]
[1728655868260,0.4926713,61851.0,61845.0,0.24240661]
[1728655868478,0.004636,61855.0,61849.0,0.161684]
[1728655868479,0.1693093,61850.0,61849.0,0.161684]
[1728655868698,0.1693093,61850.0,61843.0,0.323395]
[1728655868915,0.1693093,61850.0,61849.0,0.28254488]
[1728655869145,0.001636,61855.0,61850.0,0.323358]
[1728655869350,0.001636,61855.0,61845.0,0.001]
[1728655869351,0.008,61852.0,61845.0,0.001]
[1728655869561,0.008,61852.0,61851.0,0.28254488]
[1728655869781,0.011,61851.0,61845.0,0.001]
[1728655869997,0.011,61851.0,61846.0,0.24240661]
[1728655869998,0.1803093,61851.0,61846.0,0.24240661]
[1728655870304,0.329364,61850.0,61843.0,0.28254488]
[1728655870526,0.161692,61846.0,61843.0,0.44424388]
[1728655870744,0.161696,61845.0,61843.0,0.28254488]
[1728655870976,0.323373,61848.0,61843.0,0.28254488]
[1728655871200,0.006,61850.0,61845.0,0.001]
[1728655871201,0.1693093,61847.0,61845.0,0.001]
[1728655871441,0.329364,61850.0,61843.0,0.28254488]
[1728655871442,0.006,61850.0,61847.0,0.28254488]
[1728655871720,0.323289,61865.0,61849.0,0.005]
[1728655871970,0.005,61874.0,61854.0,0.44421588]
[1728655871971,0.323275,61867.0,61854.0,0.44421588]
[1728655872184,0.323262,61870.0,61845.0,0.001]
[1728655872185,0.161691,61846.0,61845.0,0.001]
[1728655872441,0.1693093,61846.0,61845.0,0.001]
[1728655872674,0.161695,61845.0,61843.0,0.28254488]
[1728655872910,0.1693093,61845.0,61843.0,0.28254488]
[1728655873158,0.1693093,61845.0,61843.0,0.44424388]
[1728655873375,0.1693093,61845.0,61844.0,0.161697]
[1728655873846,0.1693093,61845.0,61843.0,0.60594288]
[1728655873847,0.161697,61844.0,61843.0,0.28254488]
[1728655874076,0.3310063,61844.0,61843.0,0.28254488]
[1728655874323,0.1693093,61844.0,61843.0,0.28254488]
[1728655874733,0.3310063,61844.0,61843.0,0.29232789]
[1728655874950,0.3310063,61844.0,61843.0,0.00978301]
[1728655875393,0.161718,61836.0,61835.0,0.24240661]
[1728655875616,0.3460451,61836.0,61835.0,0.24240661]
[1728655875822,0.3310273,61836.0,61835.0,0.2506975]
[1728655876034,0.3310273,61836.0,61835.0,0.00829089]
[1728655876245,0.3310273,61836.0,61835.0,0.29083577]
[1728655876473,0.34606258,61836.0,61835.0,0.28254488]
[1728655876727,0.1743093,61836.0,61835.0,0.29083577]
[1728655876938,0.1693093,61836.0,61835.0,0.45255577]
[1728655877160,0.1773093,61836.0,61835.0,0.29183577]
[1728655877380,0.1873093,61836.0,61835.0,0.29283577]
[1728655877594,0.1773093,61836.0,61835.0,0.29183577]
[1728655878285,0.1773093,61836.0,61835.0,0.00929089]
[1728655878286,0.3390273,61836.0,61835.0,0.00929089]
[1728655878531,0.35407473,61836.0,61835.0,0.00929089]
[1728655878732,0.35407473,61836.0,61835.0,0.001]
[1728655879148,0.35907473,61836.0,61835.0,0.001]
[1728655880022,0.19735673,61836.0,61835.0,0.001]
[1728655880228,0.19735673,61836.0,61835.0,0.16272]
[1728655880440,0.19735673,61836.0,61835.0,0.17103203]
[1728655880648,0.19735673,61836.0,61835.0,0.00931203]
[1728655880863,0.19735673,61836.0,61835.0,0.17103203]
[1728655881484,0.19735673,61836.0,61835.0,0.00931203]
[1728655881485,0.1823093,61836.0,61835.0,0.00931203]
[1728655882132,0.1823093,61836.0,61835.0,0.08721203]
[1728655882538,0.013,61836.0,61835.0,0.24893203]
[1728655882742,0.013,61836.0,61835.0,0.25216594]
[1728655882951,0.001638,61850.0,61835.0,0.08621203]
[1728655883174,0.001638,61850.0,61848.0,0.28254488]
[1728655883175,0.18438663,61849.0,61848.0,0.28254488]
[1728655883617,0.18438663,61849.0,61848.0,0.29079002]
[1728655884686,0.20853754,61849.0,61848.0,0.29079002]
[1728655885520,0.21353754,61849.0,61848.0,0.29079002]
[1728655886160,0.21353754,61849.0,61848.0,0.28254488]
[1728655886591,0.1813093,61849.0,61848.0,0.00919265]
[1728655886833,0.36715228,61849.0,61848.0,0.00919265]
[1728655887045,0.47215228,61849.0,61848.0,0.00919265]
[1728655887269,0.49515228,61849.0,61848.0,0.001]
[1728655887880,0.161707,61840.0,61839.0,0.24240661]
[1728655888084,0.3310163,61840.0,61839.0,0.24240661]
[1728655888561,0.32342,61839.0,61835.0,0.000819]
[1728655888806,0.161718,61836.0,61835.0,0.000819]
[1728655889027,0.20857518,61836.0,61835.0,0.000819]
[1728655889282,0.22790717,61836.0,61835.0,0.28336388]
[1728655889707,0.22790717,61836.0,61835.0,0.29166554]
[1728655889928,0.22790717,61836.0,61835.0,0.29266554]
[1728655890130,0.23590717,61836.0,61835.0,0.29366554]
[1728655890778,0.23590717,61836.0,61835.0,0.01112066]
[1728655891225,0.23590717,61836.0,61835.0,0.01012066]
[1728655891649,0.24490717,61836.0,61835.0,0.01012066]
[1728655891878,0.40662517,61836.0,61835.0,0.01012066]
[1728655892293,0.3480273,61836.0,61835.0,0.001819]
[1728655892515,0.40663322,61836.0,61835.0,0.001819]
[1728655892731,1.52921196,61836.0,61835.0,0.001819]
[1728655892957,0.161746,61825.0,61824.0,0.24240661]
[1728655893262,0.38966122,61825.0,61824.0,0.24240661]
[1728655893505,0.38966122,61825.0,61824.0,0.25079893]
[1728655893722,0.38966122,61825.0,61819.0,0.000819]
[1728655893723,0.161759,61820.0,61819.0,0.000819]
[1728655893948,0.161759,61820.0,61819.0,0.19192874]
[1728655893949,0.22791522,61820.0,61819.0,0.19192874]
[1728655894160,0.0151048,61820.0,61819.0,0.56399335]
[1728655894375,0.161721,61835.0,61821.0,0.161756]
[1728655894585,0.161721,61835.0,61829.0,0.28277132]
[1728655894586,0.05856355,61834.0,61829.0,0.28277132]
[1728655894813,0.22787285,61833.0,61829.0,0.28277132]
[1728655895009,0.05856355,61832.0,61830.0,0.00835833]
[1728655895212,0.796019,61840.0,61829.0,0.28277132]
[1728655895213,0.22787278,61831.0,61829.0,0.28277132]
[1728655895465,0.03924362,61830.0,61829.0,0.28277132]
[1728655895688,0.1693093,61830.0,61829.0,0.28277132]
[1728655895901,0.20856131,61830.0,61829.0,0.28277132]
[1728655896117,0.20856131,61830.0,61829.0,0.29113531]
[1728655896331,0.18440623,61830.0,61829.0,0.29113531]
[1728655897013,0.01509693,61830.0,61829.0,0.69458484]
[1728655897228,0.007,61832.0,61829.0,0.50373531]
[1728655897450,0.0151036,61831.0,61829.0,0.50373531]
[1728655897662,0.323397,61844.0,61829.0,0.66547031]
[1728655897875,0.161702,61842.0,61836.0,0.28277132]
[1728655898096,0.22791001,61841.0,61836.0,0.28277132]
[1728655898321,0.05860071,61840.0,61837.0,0.00893007]
[1728655898506,0.22791001,61839.0,61837.0,0.00893007]
[1728655898756,0.05860071,61838.0,61836.0,0.28277132]
[1728655898986,0.22791001,61837.0,61832.0,0.28277132]
[1728655899217,0.03927277,61836.0,61832.0,0.28277132]
[1728655899394,0.18441421,61835.0,61832.0,0.28277132]
[1728655899597,0.01510491,61834.0,61832.0,0.28277132]
[1728655899806,0.18441421,61833.0,61832.0,0.28277132]
[1728655901069,0.18441421,61833.0,61832.0,0.28377132]
[1728655901337,0.006,61836.0,61832.0,0.28377132]
[1728655901543,0.01511202,61835.0,61832.0,0.28277132]
[1728655901756,0.01511202,61834.0,61832.0,0.28277132]
[1728655901981,0.01811202,61833.0,61832.0,0.28277132]
[1728655902693,0.01811523,61833.0,61832.0,0.28277132]
[1728655902930,0.01511523,61833.0,61832.0,0.28277132]
[1728655903412,0.01511523,61833.0,61832.0,0.28377132]
[1728655904481,0.01511523,61833.0,61832.0,0.44549932]
[1728655904954,0.005,61835.0,61834.0,0.161722]
[1728655905170,0.001636,61855.0,61834.0,0.161722]
[1728655905171,0.001636,61855.0,61847.0,0.323377]
[1728655905377,0.04352488,61854.0,61848.0,0.44445732]
[1728655905614,0.01675014,61849.0,61848.0,0.57495733]
[1728655906088,0.001638,61849.0,61848.0,0.57495733]
[1728655906299,0.001638,61849.0,61848.0,0.5329251]
[1728655906516,0.010638,61849.0,61848.0,0.5329251]
[1728655906949,0.007638,61849.0,61848.0,0.5329251]
[1728655907890,0.18605088,61849.0,61848.0,0.00886778]
[1728655908329,0.18605088,61849.0,61848.0,0.001]
[1728655908543,0.18605088,61849.0,61848.0,0.29262092]
[1728655908770,0.18705088,61849.0,61848.0,0.28877132]
[1728655908987,0.19205088,61849.0,61848.0,0.2975958]
[1728655909204,0.1759473,61849.0,61848.0,0.2915958]
[1728655909423,0.19104894,61849.0,61848.0,0.2915958]
[1728655909642,0.19104844,61849.0,61848.0,0.2915958]
[1728655909866,0.18604844,61849.0,61848.0,0.2915958]
[1728655910134,0.01973914,61849.0,61848.0,0.2915958]
[1728655910347,0.004638,61849.0,61848.0,0.4532818]
[1728655910564,0.004638,61849.0,61848.0,0.5359818]
[1728655911006,0.001638,61849.0,61848.0,0.5359818]
[1728655911219,0.001636,61855.0,61849.0,0.005]
[1728655911438,0.001636,61855.0,61849.0,0.29698128]
[1728655911663,0.001636,61855.0,61849.0,0.30588989]
[1728655911891,0.00164,61875.0,61865.0,0.161642]
[1728655912145,0.00164,61875.0,61865.0,0.44764561]
[1728655912430,0.00164,61875.0,61865.0,0.57463137]
[1728655912676,0.00164,61875.0,61865.0,0.73743331]
[1728655913440,0.002638,61866.0,61865.0,0.74443331]
[1728655913695,0.003638,61866.0,61865.0,0.58879131]
[1728655913945,0.002638,61866.0,61865.0,0.74443331]
[1728655914192,0.003638,61866.0,61865.0,0.75043331]
[1728655914852,0.002638,61866.0,61865.0,0.74343331]
[1728655915100,0.002638,61866.0,61865.0,0.74743331]
[1728655915314,0.001638,61866.0,61865.0,0.57863137]
[1728655915534,0.001638,61866.0,61865.0,0.57463137]
[1728655915746,0.002638,61866.0,61865.0,0.58063137]
[1728655915966,0.002638,61866.0,61865.0,0.58163137]
[1728655916180,0.002638,61866.0,61865.0,0.58763137]
[1728655916446,0.002638,61866.0,61865.0,0.74413391]
[1728655916648,0.003638,61866.0,61865.0,0.74413391]
[1728655916865,0.004638,61866.0,61865.0,0.75013391]
[1728655917085,0.003638,61866.0,61865.0,0.74413391]
[1728655918253,0.003638,61866.0,61865.0,0.58063137]
[1728655918467,0.004638,61866.0,61865.0,0.58663137]
[1728655918687,0.002638,61866.0,61865.0,0.58063137]
[1728655918933,0.002638,61866.0,61865.0,0.58163137]
[1728655919164,0.003638,61866.0,61865.0,0.58763137]
[1728655919373,0.002638,61866.0,61865.0,0.74473391]
[1728655919796,0.003638,61866.0,61865.0,0.75273391]
[1728655920475,0.003638,61866.0,61865.0,0.75773391]
[1728655920930,0.003638,61866.0,61865.0,0.59363137]
[1728655921459,0.003638,61866.0,61865.0,0.42698937]
[1728655921679,0.003638,61866.0,61865.0,0.30558937]
[1728655921924,0.003638,61866.0,61865.0,0.46723137]
[1728655922136,0.003638,61866.0,61865.0,0.47223137]
[1728655923764,0.003638,61866.0,61865.0,0.62429461]
[1728655923976,0.003638,61866.0,61865.0,0.30558937]
[1728655925055,0.003638,61866.0,61865.0,0.21359714]
[1728655926132,0.003638,61866.0,61865.0,0.37847157]
[1728655926317,0.003638,61866.0,61865.0,0.37523914]
[1728655927483,0.00164,61875.0,61874.0,0.19077909]
[1728655927892,0.00164,61875.0,61874.0,0.36323392]
[1728655928637,0.00164,61875.0,61874.0,0.20161592]
[1728655928885,0.00264,61875.0,61874.0,0.20161592]
[1728655929378,0.00264,61875.0,61874.0,0.36323392]
[1728655929882,0.00264,61875.0,61874.0,0.20261592]
[1728655930794,0.1719493,61875.0,61874.0,0.20161592]
[1728655931017,0.1719493,61875.0,61874.0,0.01183683]
[1728655931265,0.18700413,61875.0,61874.0,0.20261592]
[1728655931504,0.34862013,61875.0,61874.0,0.20261592]
[1728655931730,0.35966889,61875.0,61874.0,0.01183683]
[1728655931973,0.38476756,61875.0,61874.0,0.001]
[1728655932478,0.46516756,61875.0,61874.0,0.001]
[1728655932719,0.46616756,61875.0,61874.0,0.001]
[1728655932945,0.30455156,61875.0,61867.0,0.24240661]
[1728655933161,0.22051156,61874.0,61867.0,0.24240661]
[1728655933388,0.161634,61868.0,61867.0,0.24240661]
[1728655933613,0.161637,61867.0,61866.0,0.19077909]
[1728655933830,0.38214856,61867.0,61866.0,0.19077909]
[1728655934069,0.22051156,61867.0,61866.0,0.19077909]
[1728655934513,0.38214856,61867.0,61866.0,0.19077909]
[1728655934734,0.22051156,61867.0,61866.0,0.19077909]
[1728655935908,0.22751156,61867.0,61866.0,0.19177909]